[Event "Memorial Ukrainian Chess Warriors 2024"]
[Site "Lviv"]
[Date "2024.03.15"]
[Round "3.27"]
[White "Pelekhatyy, Zakhar"]
[Black "Bagiryan, Vigen"]
[Result "0-1"]
[ECO "B01"]
[WhiteElo "1710"]
[BlackElo "1969"]
[Annotator "RC"]
[PlyCount "146"]
[EventDate "2024.03.06"]
[EventType "swiss"]
[EventCountry "UKR"]
[SourceTitle "playchess.com"]
[Source "ChessBase"]
[SourceQuality "1"]
[TimeControl "600+5"]

1. e4 {[%emt 0:00:02]} d5 {[%emt 0:00:23]} 2. exd5 {[%emt 0:00:02]} Qxd5 {[%emt 0:00:02]} 3. Nc3 {[%emt 0:00:01]} Qd8 {[%emt 0:00:02]} 4. Bc4 {[%emt 0:00:01]} e6 {[%emt 0:00:09]} 5. d3 {[%emt 0:00:02]} a6 {[%emt 0:00:06]} 6. Nf3 {[%emt 0:00:01]} b5 {[%emt 0:00:03]} 7. Bb3 {[%emt 0:00:02]} Bb7 {[%emt 0:00:02]} 8. O-O {[%emt 0:00:03]} Nf6 {[%emt 0:00:08]} 9. Bg5 {[%emt 0:00:03]} Be7 {[%emt 0:00:02]} 10. Re1 {[%emt 0:00:03]} Nbd7 {[%emt 0:00:01]} 11. a3 {[%emt 0:00:16]} h6 {[%emt 0:00:04]} 12. Bh4 {[%emt 0:00:01]} c5 {[%emt 0:00:09]} 13. Qe2 {[%emt 0:00:13]} O-O {[%emt 0:00:30]} 14. Rad1 {[%emt 0:00:11]} Qb6 {[%emt 0:01:44]} 15. Ne4 {[%emt 0:00:43]} Rfe8 {[%emt 0:00:03]} 16. Nxf6+ Bxf6 {[%emt 0:00:13]} 17. Bxf6 {[%emt 0:00:27]} Nxf6 {[%emt 0:00:01]} 18. c4 {[%emt 0:00:08]} Rad8 {[%emt 0:00:26]} 19. Ne5 {[%emt 0:00:15]} b4 {[%emt 0:00:05]} 20. Bc2 {[%emt 0:00:18]} b3 {[%emt 0:00:15]} 21. Bb1 {[%emt 0:00:02]} Rd4 {[%emt 0:00:02]} 22. f3 {[%emt 0:00:30]} Red8 {[%emt 0:00:09]} 23. Qd2 {[%emt 0:00:24]} a5 {[%emt 0:00:16]} 24. Qc3 {[%emt 0:00:09]} a4 {[%emt 0:00:02]} 25. Re3 {[%emt 0:00:05]} Nd7 {[%emt 0:00:30]} 26. Nxd7 {[%emt 0:00:26]} R8xd7 {[%emt 0:00:01]} 27. h3 {[%emt 0:00:04]} Qd8 {[%emt 0:00:03]} 28. Kf2 {[%emt 0:00:05]} Ba6 {[%emt 0:01:06]} 29. Rde1 {[%emt 0:00:21]} Qh4+ {[%emt 0:00:14]} 30. Kg1 {[%emt 0:00:25]} Qd8 {[%emt 0:00:19]} 31. Re5 {[%emt 0:00:07]} Qc7 {[%emt 0:00:12]} 32. R5e4 {[%emt 0:00:15]} Bb7 {[%emt 0:00:06]} 33. R4e3 {[%emt 0:00:30]} Kf8 {[%emt 0:02:05]} 34. Re5 {[%emt 0:00:26]} Ke7 {[%emt 0:00:07]} 35. Qc1 {[%emt 0:00:16]} g5 {[%emt 0:00:10]} 36. Qe3 {[%emt 0:00:19]} R7d6 {[%emt 0:00:11]} 37. Qf2 {[%emt 0:00:11]} f6 {[%emt 0:00:05]} 38. R5e3 {[%emt 0:00:02]} e5 {[%emt 0:00:04]} 39. Qg3 {[%emt 0:00:10]} h5 {[%emt 0:00:07]} 40. Qf2 {[%emt 0:00:13]} Kd8 {[%emt 0:00:23]} 41. Kf1 {[%emt 0:00:28]} Kc8 {[%emt 0:00:04]} 42. R1e2 {[%emt 0:00:13]} Kb8 {[%emt 0:00:04]} 43. Qg3 {[%emt 0:01:38]} Ka7 {[%emt 0:00:06]} 44. Qe1 {[%emt 0:00:18]} Ka6 {[%emt 0:00:01]} 45. Qd2 {[%emt 0:00:05]} g4 {[%emt 0:00:19]} 46. fxg4 {[%emt 0:00:29]} hxg4 {[%emt 0:00:02]} 47. Qe1 {[%emt 0:00:07]} gxh3 {[%emt 0:00:15]} 48. Rxh3 {[%emt 0:00:02]} e4 {[%emt 0:00:31]} 49. Qc3 {[%emt 0:00:22]} f5 {[%emt 0:00:18]} 50. dxe4 fxe4 51. Kg1 {[%emt 0:00:25]} Rd1+ {[%emt 0:00:37]} 52. Re1 {[%emt 0:00:03]} R1d4 {[%emt 0:00:30]} 53. Rhe3 {[%emt 0:00:31]} Re6 {[%emt 0:00:08]} 54. R3e2 {[%emt 0:00:03]} Qf7 {[%emt 0:00:17]} 55. Rf1 {[%emt 0:00:09]} Qg8 {[%emt 0:00:01]} 56. Re3 {[%emt 0:00:14]} Rg6 {[%emt 0:00:02]} 57. Rf2 {[%emt 0:00:02]} Qxc4 58. Qxc4+ {[%emt 0:00:10]} Rxc4 {[%emt 0:00:09]} 59. Rfe2 {[%emt 0:00:01]} Rc1+ {[%emt 0:00:30]} 60. Re1 {[%emt 0:00:01]} Rxe1+ {[%emt 0:00:03]} 61. Rxe1 {[%emt 0:00:01]} Re6 {[%emt 0:00:05]} 62. Kf2 {[%emt 0:00:02]} Kb5 {[%emt 0:00:06]} 63. Rd1 {[%emt 0:00:11]} e3+ {[%emt 0:00:04]} 64. Ke2 {[%emt 0:00:03]} Bxg2 {[%emt 0:00:03]} 65. Bf5 {[%emt 0:00:04]} Re5 {[%emt 0:00:03]} 66. Bd7+ Ka5 {[%emt 0:00:03]} 67. Rg1 {[%emt 0:00:09]} Bb7 {[%emt 0:00:03]} 68. Rg6 {[%emt 0:00:09]} Ba6+ {[%emt 0:00:01]} 69. Ke1 {[%emt 0:00:02]} Rh5 {[%emt 0:00:15]} 70. Rg1 {[%emt 0:00:06]} Rh2 {[%emt 0:00:02]} 71. Bg4 {[%emt 0:00:18]} Rxb2 {[%emt 0:00:03]} 72. Rg3 {[%emt 0:00:11]} Rb1+ {[%emt 0:00:05]} 73. Bd1 {[%emt 0:00:01]} e2 {[%emt 0:00:01]} 0-1

[Event "Memorial Ukrainian Chess Warriors 2024"]
[Site "Lviv"]
[Date "2024.03.15"]
[Round "4.1"]
[White "Kravtsiv, Martyn"]
[Black "Baziuk, Vladyslav"]
[Result "1-0"]
[ECO "B10"]
[WhiteElo "2598"]
[BlackElo "2211"]
[Annotator "TA"]
[PlyCount "59"]
[EventDate "2024.03.06"]
[EventType "swiss"]
[EventCountry "UKR"]
[SourceTitle "playchess.com"]
[Source "ChessBase"]
[SourceQuality "1"]
[TimeControl "600+5"]

{[%evp 21,59,28,25,20,54,70,72,64,82,75,140,128,191,116,430,441,456,458,445,451,562,546,651,683,663,661,695,343,351,353,354,370,342,341,354,362,380,355,519,352]} 1. e4 {[%emt 0:00:03]} c6 {[%emt 0:00:01]} 2. Nf3 {[%emt 0:00:02]} d5 {[%emt 0:00:01]} 3. d3 {[%emt 0:00:01]} Bg4 {[%emt 0:00:26]} 4. h3 {[%emt 0:00:05]} Bxf3 {[%emt 0:00:01]} 5. Qxf3 {[%emt 0:00:02]} e5 {[%emt 0:00:02]} 6. g3 {[%emt 0:00:34]} Nf6 {[%emt 0:00:17]} 7. Bg2 {[%emt 0:00:02]} dxe4 {[%emt 0:00:16]} 8. dxe4 {[%emt 0:00:02]} Bc5 {[%emt 0:00:10]} 9. O-O {[%emt 0:00:05]} O-O {[%emt 0:00:24]} 10. Nd2 {[%emt 0:00:03][%cal Bb1d2,Bd2c4,Bc4e3,Be3f5,Bf5h6][%mdl 32]} Nbd7 {[%emt 0:00:40]} 11. a4 {[%emt 0:00:04]} a5 {[%emt 0:00:27]} 12. Nc4 {[%emt 0:00:19]} b5 {[%emt 0:00:37]} 13. Ne3 {[%emt 0:00:59]} Qb6 {[%emt 0:01:34]} 14. h4 {[%emt 0:01:47] White is better.} Rfe8 {[%emt 0:01:26]} 15. Nf5 {[%emt 0:00:56]} g6 {[%emt 0:01:04]} (15... Red8 $142) 16. Nh6+ $16 {[%emt 0:00:07]} Kg7 {[%emt 0:00:02] [#]} 17. Bh3 {[%emt 0:01:11]} (17. Rd1 $1 $18) 17... Nf8 $2 {[%emt 0:01:20][%mdl 8192]} (17... Qc7 $16 {is a better chance.} 18. Rd1 Nb6) 18. Bg5 $18 {[%emt 0:00:03]} Be7 {[%emt 0:00:05]} 19. Qb3 {[%emt 0:00:05] Inhibits Ne6.} Ne6 {[%emt 0:02:08]} 20. Bxe6 {[%emt 0:00:20]} Nxe4 {[%emt 0:00:02]} 21. Bd7 {[%emt 0:02:09]} Bxg5 {[%emt 0:00:14]} 22. Qxf7+ {[%emt 0:01:04]} (22. hxg5 Re7 $18) 22... Kxh6 {[%emt 0:00:12]} 23. Bxe8 {[%emt 0:00:02]} Bf6 {[%emt 0:00:02]} 24. Rae1 {[%emt 0:00:25]} (24. Rad1 $142 {Rd7 would kill now.} Ra7 25. Qf8+ Bg7 26. Qf3) 24... Ra7 {[%emt 0:00:02]} 25. Qe6 {[%emt 0:00:21]} Re7 {[%emt 0:00:09]} 26. Qxc6 {[%emt 0:00:03]} Qxc6 {[%emt 0:00:18]} 27. Bxc6 {[%emt 0:00:02]} Nd2 {[%emt 0:00:00]} 28. axb5 {[%emt 0:00:14][%cal Ob5b6] [#] Threatens to win with b6!} Nxf1 {[%emt 0:00:03]} 29. Kxf1 {[%emt 0:00:01]} ({Resist} 29. Rxf1 e4 30. c3 Re6 $18) 29... e4 {[%emt 0:00:01]} (29... Re6 $142 30. Bd5 Rb6) 30. b3 {[%emt 0:00:10] Black did not feel at home in the position after the opening.   Weighted Error Value: White=0.60/Black=0.53.  Loses game:     	---       	Black=1      Mistake:       	White=1     	Black=2      Inaccurate:     	White=1     	Black=1      OK:         	White=7     	Black=3      Best:        	White=2     	Black=3} 1-0

[Event "Memorial Ukrainian Chess Warriors 2024"]
[Site "Lviv"]
[Date "2024.03.15"]
[Round "4.2"]
[White "Bykovskiy, Oleg"]
[Black "Pavlov, Sergey"]
[Result "1/2-1/2"]
[ECO "B29"]
[WhiteElo "2231"]
[BlackElo "2451"]
[Annotator "TA"]
[PlyCount "172"]
[EventDate "2024.03.06"]
[EventType "swiss"]
[EventCountry "UKR"]
[SourceTitle "playchess.com"]
[Source "ChessBase"]
[SourceQuality "1"]
[TimeControl "600+5"]

{[%evp 15,171,0,0,0,0,0,0,0,6,10,5,-13,-16,-14,0,0,0,0,0,0,16,0,11,10,19,26,26,13,30,31,33,37,30,0,0,-2,0,-28,-37,-106,-114,-104,-109,-115,-108,-129,-138,-149,-145,-150,-150,-137,-152,-252,-233,-265,-263,-270,-277,-272,-274,-271,-262,-311,-285,-433,-410,-489,-485,-488,-392,-683,-930,-991,-984,-953,-685,-707,-670,-1195,-1191,-1155,-1133,-1051,-1031,-1022,-959,-751,-758,-1008,-727,-875,-831,-833,-729,-614,0,-395,-279,-279,-279,-279,-279,-279,-275,-240,-96,-271,-163,-149,-94,-282,-276,-282,-283,-283,-283,-283,-283,-283,-275,-29942,-8,-8,-275,-283,-203,-212,-275,-283,-267,-275,-275,-275,-8,-8,-8,-275,-275,-275,-277,-277,-275,-275,-8,-277,-283,-283,-231,-8,-8,-8,0,-283,-283,-283,-8,-8]} 1. e4 {[%cal Be2e4,Be4e5][%mdl 32]} c5 2. Nf3 Nf6 {[%cal Bg8f6,Bf6d5,Bd5b4,Bb4c6][%mdl 32]} 3. e5 Nd5 4. d4 cxd4 5. c3 Nc6 6. cxd4 d6 7. Bc4 dxe5 8. dxe5 Ndb4 9. Qxd8+ Nxd8 10. Na3 {Inhibits Nc2+.} a6 {Inhibits Nb5.} 11. Bd2 Nbc6 12. Bd5 Be6 13. Bxe6 Nxe6 14. Nc4 g6 15. Na5 Nxa5 16. Bxa5 Rc8 {[%cal Ba8c8,Bc8c5,Bc5c2,Bc2e2][%mdl 32]} 17. O-O Bh6 18. Rad1 Rc5 19. Bc3 g5 20. h3 Rg8 21. Bd4 Rc2 22. Bc3 g4 23. hxg4 Rxg4 24. Ne1 Re2 25. Nd3 Ng5 26. g3 Ne4 $40 {[%mdl 128] White needs to defend precisely.} 27. Rfe1 (27. Ba5 $15 Kf8 (27... Rxg3+ $2 28. fxg3 Be3+ 29. Nf2 $18) 28. Rfe1 Rxg3+ 29. Kf1 Rxe1+ 30. Nxe1) 27... Nxc3 $1 $17 28. bxc3 {[#]} Rxe1+ (28... Rxa2 $6 29. Nc5 $11) 29. Rxe1 {[%mdl 4096] Endgame. KRB-KRN} Rc4 30. e6 Rxc3 31. exf7+ Kxf7 32. Ne5+ Ke8 33. Ng4 Rc1 34. Kf1 (34. Nf6+ $17 Kf7 35. Rxc1 Bxc1 36. Ne4) 34... Rxe1+ $19 35. Kxe1 {KB-KN} Bg7 36. Kd2 Kd7 37. Kd3 b5 38. Ne3 e6 39. Nc2 Kd6 40. f4 (40. Na3 $142) 40... Kc5 41. g4 a5 42. Ne3 b4 43. f5 $2 (43. Nc2) 43... exf5 44. Nxf5 Bf6 45. Ng3 Be5 46. Ne4+ Kd5 47. Ng5 h6 48. Nf3 Bf6 49. Nd2 Bd8 50. Nc4 Bc7 51. Ne3+ Kc5 52. Nf5 Bf4 53. Ng7 Bg5 54. Ne6+ Kd5 55. Nd4 Kc5 56. Ne6+ $1 Kb5 57. Nd4+ Ka4 {Threatens to win with ...Ka3.} 58. Nb3 Bd8 59. Kc2 Ka3 60. Kb1 a4 (60... Bc7 $19 {is more deadly. White must now prevent ...Bb6.} 61. Nd4 Bg3) 61. Nd4 $2 (61. Nd2 $17 {is the only way for White.} b3 62. axb3) 61... b3 62. axb3 {[#]} axb3 (62... Bf6 $142 $1 {[%cal Rf6d4]} 63. Ne6 Kxb3 (63... axb3 64. Nc7 $15) 64. Nc5+ Ka3) 63. Nxb3 $2 Kxb3 {KB-KP} 64. Kc1 Kc3 65. Kd1 Kd3 66. Ke1 Ke3 67. Kf1 Kf3 {[%cal Od8b6] ( -> ...Bb6!)} 68. Kg1 Kg3 {[%cal Od8e7] Hoping for ...Be7!} 69. Kh1 Bc7 $2 {[%mdl 8192]} (69... Kxg4 $2 70. Kg2 $19) (69... Kh3 $11 70. Kg1 Bh4 (70... Kxg4 $2 71. Kg2 $19)) 70. Kg1 Kh3 {[%cal Oh3g3]} (70... Kxg4 71. Kf2 $19) 71. Kh1 Bf4 (71... Kxg4 $2 72. Kg2 $19) 72. Kg1 Kg3 (72... Kxg4 73. Kg2) 73. Kh1 Kf3 (73... Kxg4 74. Kg2) 74. Kg1 Bg3 $2 (74... Kxg4 75. Kg2) (74... Bd6 $19 {[%cal Od6e5]} 75. Kh1 Kg3 (75... Kxg4 $2 76. Kg2 $19)) 75. Kh1 $11 Bf2 (75... Kxg4 $2 76. Kg2 $19) 76. Kh2 Be3 (76... Kxg4 77. Kh1 $19) 77. Kh1 Kf2 (77... Kxg4 78. Kh2 $19) 78. Kh2 Kf1 79. Kh1 Bg5 80. Kh2 Kf2 81. Kh1 Kg3 {[%cal Og3f3]} 82. Kg1 Kh3 (82... Kxg4 $2 83. Kf2 $19) 83. Kh1 Bf4 $2 {[%mdl 8192]} (83... Kxg4 $2 84. Kg2 $19) (83... Bd2 $11 84. Kg1 Be3+ (84... Kxg4 $2 85. Kh2 $19) 85. Kh1 Bf4 (85... Kxg4 $2 86. Kh2 $19)) 84. Kg1 $19 Bh2+ (84... Kxg4 85. Kg2) 85. Kh1 Kg3 $2 (85... Bd6 $19 {[%cal Od6g3] ...Bg3! would now be deadly.} 86. Kg1 Bc5+ (86... Kxg4 $2 87. Kg2 $19) 87. Kh1 Be3 (87... Kxg4 $2 88. Kh2 $19)) 86. g5 $11 {And now g6 would win.} hxg5 {Weighted Error Value: White=0.32/Black=0.27 (precise) .  Loses game:     	White=3     	---        Missed win:     	---       	Black=2      Mistake:       	White=4     	Black=3      Inaccurate:     	White=2     	---        OK:         	White=11    	Black=21     Best:        	White=21    	Black=7      Strong:       	---       	Black=1} (86... h5 87. g6 Kh3 88. g7 Be5 89. g8=Q (89. g8=B Bd4 $11) 89... Bd4 90. Qe6+ (90. Qg5 Ba7 91. Qg2+ Kh4 92. Qg7 Kh3 93. Qxa7 h4 94. Qd7+ Kg3) 90... Kh4 91. Qe4+ Kg5 92. Qxd4) (86... Kf2 $5 87. gxh6 Be5 $11) 1/2-1/2

[Event "Memorial Ukrainian Chess Warriors 2024"]
[Site "Lviv"]
[Date "2024.03.15"]
[Round "4.3"]
[White "Domanskiy, Mykola"]
[Black "Grinev, Valeriy"]
[Result "0-1"]
[ECO "B41"]
[WhiteElo "2046"]
[BlackElo "2422"]
[Annotator "TA"]
[PlyCount "62"]
[EventDate "2024.03.06"]
[EventType "swiss"]
[EventCountry "UKR"]
[SourceTitle "playchess.com"]
[Source "ChessBase"]
[SourceQuality "1"]
[TimeControl "600+5"]

{[%evp 14,61,44,29,37,9,20,4,25,15,19,-7,0,0,24,30,35,37,72,71,105,71,73,60,44,55,212,216,215,234,221,216,218,212,260,189,172,-674,-675,-677,-686,-678,-627,-634,-658,-664,-649,-29982,-29964,-29999]} 1. e4 {[%emt 0:00:02]} c5 {[%emt 0:00:01]} 2. Nf3 {[%emt 0:00:01]} e6 {[%emt 0:00:02]} 3. d4 {[%emt 0:00:01]} cxd4 {[%emt 0:00:01]} 4. Nxd4 {[%emt 0:00:02]} a6 {[%emt 0:00:01]} 5. c4 {[%emt 0:00:05]} Nf6 {[%emt 0:00:03]} 6. Nc3 {[%emt 0:00:01]} Qc7 {[%emt 0:00:02]} 7. a3 {[%emt 0:00:01]} b6 {[%emt 0:00:03]} 8. Bd3 {[%emt 0:00:51]} Nc6 {[%emt 0:00:15]} 9. Nxc6 {[%emt 0:00:23]} dxc6 {[%emt 0:00:03]} 10. O-O {[%emt 0:00:12]} e5 {[%emt 0:00:07] The position is equal.} 11. h3 {[%emt 0:00:20]} Bc5 {[%emt 0:00:49]} 12. Qe2 {[%emt 0:00:56]} O-O {[%emt 0:01:04][%cal Bh8f8,Bf8d8,Bd8d4][%mdl 32]} 13. Be3 {[%emt 0:00:40]} Be6 {[%emt 0:00:32]} 14. Bxc5 {[%emt 0:01:24]} bxc5 {[%emt 0:00:02]} 15. Qe3 {[%emt 0:00:01]} Rfd8 {[%emt 0:01:35]} 16. Na4 $1 {[%emt 0:00:33][%cal Bc3a4,Ba4c5,Bc5a6,Ba6b4][%mdl 32]} Nd7 {[%emt 0:01:09][%cal Bf6d7,Bd7f8,Bf8g6,Bg6f4][%mdl 32]} 17. b3 {[%emt 0:01:03][%cal Of1d1]} Nf8 {[%emt 0:02:47]} 18. Rfd1 {[%emt 0:01:31]} Rd4 {[%emt 0:01:08]} 19. Nxc5 {[%emt 0:00:42]} Rad8 $2 {[%emt 0:00:35]} (19... Qd6 $14 20. Nxe6 Nxe6) 20. Nxa6 $18 {[%emt 0:00:39]} Qd6 {[%emt 0:00:01][%cal Oc6c5]} 21. Nb4 {[%emt 0:00:02]} Ng6 {[%emt 0:00:21]} 22. Be2 {[%emt 0:00:25]} Nf4 {[%emt 0:00:03]} 23. Bf3 {[%emt 0:00:13]} Bxh3 {[%emt 0:00:10]} 24. gxh3 {[%emt 0:01:07] aiming for Kh1.} Qg6+ {[%emt 0:00:00]} 25. Kh2 $4 {[%emt 0:00:01][%mdl 8192] [#]} (25. Kf1 $18 Nxh3 26. Nd3 (26. Rxd4 $2 exd4 27. Qe1 d3 $19)) 25... Rxd1 $1 $19 {[%emt 0:00:02]} 26. Rxd1 {[%emt 0:00:14]} Rxd1 {[%emt 0:00:02]} 27. Bg4 {[%emt 0:00:01] [#]} h5 $1 {[%emt 0:00:17]} 28. Nxc6 {[#] Threatens to win with Ne7+.} Qg5 {[%emt 0:00:13]} 29. Ne7+ {[%emt 0:00:41]} Kh7 {[%emt 0:00:12]} ({Worse is} 29... Qxe7 30. Bxd1 Qxa3 31. Bf3 $11) 30. Bf5+ {[%emt 0:00:14]} g6 {[%emt 0:00:01]} 31. Nxg6 {[%emt 0:00:03]} Qg1# {[%emt 0:00:01] Black used his chance.   Weighted Error Value: White=0.66/Black=0.16 (very precise) .  Missed win:     	White=1     	---        Mistake:       	---       	Black=1      Inaccurate:     	White=3     	Black=2      OK:         	White=6     	Black=5      Best:        	White=2     	Black=1      Strong:       	White=1     	Black=1} 0-1

[Event "Memorial Ukrainian Chess Warriors 2024"]
[Site "Lviv"]
[Date "2024.03.15"]
[Round "4.4"]
[White "Kislinsky, Alexey"]
[Black "Stolbov, Mikhail G."]
[Result "1-0"]
[ECO "B13"]
[WhiteElo "2361"]
[BlackElo "2205"]
[Annotator "TA"]
[PlyCount "31"]
[EventDate "2024.03.06"]
[EventType "swiss"]
[EventCountry "UKR"]
[SourceTitle "playchess.com"]
[Source "ChessBase"]
[SourceQuality "1"]
[TimeControl "600+5"]

{[%evp 16,31,47,2,93,9,14,11,6,36,11,0,0,1,1,6,403,386]} 1. e4 {[%emt 0:00:02]} c6 {[%emt 0:00:01]} 2. c4 {[%emt 0:00:03]} d5 {[%emt 0:00:04]} 3. exd5 {[%emt 0:00:02]} cxd5 {[%emt 0:00:01]} 4. d4 {[%emt 0:00:02]} Nf6 {[%emt 0:00:03]} 5. Nc3 {[%emt 0:00:01]} Nc6 {[%emt 0:00:09]} 6. Nf3 {[%emt 0:00:02]} e6 {[%emt 0:00:11]} 7. a3 {[%emt 0:00:07]} Be7 {[%emt 0:00:23]} 8. Bd3 {[%emt 0:00:02]} O-O {[%emt 0:00:14]} 9. O-O h6 {[%emt 0:00:32]} (9... dxc4 $11 10. Bxc4 h6) 10. Re1 {[%emt 0:00:14] White is more active.} (10. c5 $16) 10... dxc4 $11 {[%emt 0:00:53]} 11. Bxc4 {[%emt 0:00:02]} b6 {[%emt 0:00:19] The position is equal.} 12. Qd3 {[%emt 0:00:12]} Bb7 {[%emt 0:00:15]} 13. Ba2 {[%emt 0:00:02]} Bc5 {[%emt 0:02:16]} 14. Be3 {[%emt 0:00:22]} Ne7 {[%emt 0:01:24]} 15. Ne5 {[%emt 0:00:31]} Nf5 $2 {[%emt 0:00:45][%mdl 8192] [#]} 16. dxc5 {[%emt 0:00:26] Weighted Error Value: White=0.27 (precise) /Black=0.72.  Loses game:     	---       	Black=1      Mistake:       	White=1     	---        OK:         	White=2     	Black=1      Best:        	White=1     	Black=1} 1-0

[Event "Memorial Ukrainian Chess Warriors 2024"]
[Site "Lviv"]
[Date "2024.03.15"]
[Round "4.5"]
[White "Petrov, Vladimir Sergeev"]
[Black "Lornye, Pylyp"]
[Result "0-1"]
[ECO "A15"]
[WhiteElo "2349"]
[BlackElo "2147"]
[Annotator "TA"]
[PlyCount "80"]
[EventDate "2024.03.06"]
[EventType "swiss"]
[EventCountry "UKR"]
[SourceTitle "playchess.com"]
[Source "ChessBase"]
[SourceQuality "1"]
[TimeControl "600+5"]

{[%evp 13,80,-1,16,-7,4,-83,-80,-92,-82,-167,-158,-160,-166,-156,-115,-196,-207,-260,-142,-276,-266,-276,-243,-260,-260,-256,-257,-261,-257,-261,-261,-271,-271,-297,-223,-240,-234,-219,-218,-208,-201,-195,-198,-195,-140,-144,-133,-200,-46,-42,-36,-110,-102,-122,-128,-206,-207,-297,-285,-383,-347,-4994,-4761,-5716,-1017,-5512,-5018,-5018,-2842]} 1. c4 {[%emt 0:00:01]} Nf6 {[%emt 0:00:02]} 2. g3 {[%emt 0:00:02]} g6 {[%emt 0:00:07]} 3. Bg2 {[%emt 0:00:06]} Bg7 {[%emt 0:00:03]} 4. Nc3 {[%emt 0:00:01]} O-O {[%emt 0:00:06]} 5. d4 {[%emt 0:00:02]} d6 {[%emt 0:00:02]} 6. e3 {[%emt 0:00:03]} e5 {[%emt 0:00:24]} 7. Nge2 {[%emt 0:00:02]} c6 {[%emt 0:00:35]} 8. h3 {[%emt 0:00:02]} Nbd7 {[%emt 0:00:58]} 9. b4 {[%emt 0:00:03]} (9. b3 $11) 9... exd4 $17 {[%emt 0:00:34]} 10. Nxd4 {[%emt 0:00:55] Schwarz steht besser.} Ne5 {[%emt 0:00:14]} 11. Qe2 {[%emt 0:01:17]} (11. O-O $17 {war angesagt.}) 11... c5 $19 {[%emt 0:00:09]} 12. Nc2 {[%emt 0:01:41]} cxb4 {[%emt 0:00:09]} 13. Nxb4 {[%emt 0:00:06]} Qa5 {[%emt 0:00:02]} 14. a3 {[%emt 0:00:24]} (14. Rb1 $17) 14... Be6 {[%emt 0:00:11]} 15. Ncd5 {[%emt 0:00:18] [#]} Nxc4 {[%emt 0:00:37]} (15... Nxd5 $1 $19 {[%mdl 512]} 16. Bxd5 Bxd5 17. cxd5 Nf3+ 18. Qxf3 Bxa1) 16. Qxc4 {[%emt 0:00:13]} (16. Nxf6+ $17 Bxf6 17. Rb1) 16... Nxd5 {[%emt 0:00:01]} 17. Bxd5 {[%emt 0:00:06] Droht Rb1 und aus.} Bxd5 {[%emt 0:00:17]} ({Jedoch nicht} 17... Bxa1 18. Bd2 $19) 18. Qxd5 {[%emt 0:00:07]} Qxd5 {[%emt 0:00:04]} 19. Nxd5 {[%emt 0:00:01]} Bxa1 {[%emt 0:00:01]} 20. Ke2 {[%emt 0:00:03]} Bg7 {[%emt 0:00:08]} 21. Bd2 {[%emt 0:00:07]} Kh8 {[%emt 0:00:22]} 22. h4 {[%emt 0:00:34]} h5 {[%emt 0:00:19]} 23. Bb4 {[%emt 0:00:12]} a5 {[%emt 0:00:32]} 24. Bxd6 {[%emt 0:00:56]} Rfd8 {[%emt 0:00:01]} 25. Nb6 {[%emt 0:00:03]} Ra6 {[%emt 0:00:49]} 26. Bc7 Re8 27. Rb1 {[%emt 0:00:59]} Bf8 {[%emt 0:00:48]} 28. a4 {[%emt 0:00:35]} Bb4 {[%emt 0:00:22]} (28... Re4 $19 {...Rb4 wäre nun fies.} 29. Rd1 Bg7 30. Rd8+ Kh7) 29. Nd5 $17 {[%emt 0:00:12]} Rc6 {[%emt 0:00:26]} 30. f4 {[%emt 0:00:25]} (30. Bb6 $17) 30... Rc5 $2 {[%emt 0:00:45]} ({Besser ist} 30... f6 $19 {Weiss muss nun ...Kg8 beachten.} 31. Kf3 Ree6) 31. Rd1 $15 {[%emt 0:00:13]} Rc2+ {[%emt 0:01:22]} 32. Kf3 {[%emt 0:00:01]} (32. Kd3 $15 Ra2 33. Be5+ f6 34. Nxf6 Rd8+ 35. Nd7+ Kg8 36. Ke4) 32... Bf8 $17 {[%emt 0:00:48]} 33. Bxa5 {[%emt 0:00:45]} Ra8 {[%emt 0:00:23] Schwarz steht aktiver.} 34. Bb6 {[%emt 0:00:46]} (34. Bc7 $17 {kämpft weiter.}) 34... Rxa4 $19 {[%emt 0:00:14]} 35. Rb1 {[%emt 0:01:01]} (35. f5 $142) 35... Bg7 {[%emt 0:00:10]} 36. Bd8 {[%emt 0:00:11]} Raa2 {[%emt 0:00:13]} 37. Rb3 $2 {[%emt 0:00:22]} (37. Bf6 Bxf6 38. Nxf6) 37... Rf2+ {[%emt 0:00:07] Schwarz steht klar auf Gewinn.} 38. Ke4 {[%emt 0:00:01]} f5+ {[%emt 0:00:01]} 39. Kd3 {[%emt 0:00:02]} Rfd2+ {[%emt 0:00:02]} 40. Kc4 {[%emt 0:00:01]} Rac2+ {[%emt 0:00:02] Gewichteter Fehlerwert: Weiß=0.53/Schwarz=0.20 (präzise) .  Fehler:       	Weiß=9     	Schwarz=3     Ungenau:       	Weiß=1     	---        OK:         	Weiß=7     	Schwarz=14    Bester:       	Weiß=2     	Schwarz=4} 0-1